[Event "Early-Titled-Tuesday-Blitz-March-12-2024"]
[Site "Chess.com"]
[Date "2024.03.12"]
[Round "4"]
[White "kpio91"]
[Black "GothamChess"]
[Result "0-1"]
[WhiteElo "2857"]
[BlackElo "2681"]
[TimeControl "180+1"]
[EndTime "8:40:05 PDT"]
[Termination "GothamChess won on time"]

1. c4 {[%clk 0:03:00.9]} 1... e6 {[%clk 0:02:55.1]} 2. Nf3 {[%clk 0:02:59.3]}
2... d5 {[%clk 0:02:54.7]} 3. e3 {[%clk 0:02:58.9]} 3... a6 {[%clk 0:02:54.5]}
4. b3 {[%clk 0:02:57.3]} 4... Nf6 {[%clk 0:02:51.5]} 5. Bb2 {[%clk 0:02:57.5]}
5... g6 {[%clk 0:02:49]} 6. Nc3 {[%clk 0:02:52.8]} 6... Bg7 {[%clk 0:02:48.6]}
7. Be2 {[%clk 0:02:53]} 7... b6 {[%clk 0:02:47.2]} 8. O-O {[%clk 0:02:53.1]}
8... Bb7 {[%clk 0:02:47.6]} 9. Rc1 {[%clk 0:02:53.2]} 9... O-O {[%clk
0:02:46.3]} 10. d4 {[%clk 0:02:50.7]} 10... Nbd7 {[%clk 0:02:42]} 11. Qc2 {[%clk
0:02:50.3]} 11... dxc4 {[%clk 0:02:27.5]} 12. bxc4 {[%clk 0:02:49.3]} 12... c5
{[%clk 0:02:28.1]} 13. Rfd1 {[%clk 0:02:45.9]} 13... Qc7 {[%clk 0:02:18.7]} 14.
a4 {[%clk 0:02:35.3]} 14... cxd4 {[%clk 0:02:03]} 15. exd4 {[%clk 0:02:30.5]}
15... Ng4 {[%clk 0:01:59.7]} 16. h3 {[%clk 0:02:14.1]} 16... Ngf6 {[%clk
0:01:41.1]} 17. d5 {[%clk 0:01:42.7]} 17... exd5 {[%clk 0:01:39.6]} 18. cxd5
{[%clk 0:01:42.4]} 18... Rac8 {[%clk 0:01:29.6]} 19. Ba3 {[%clk 0:01:28.5]}
19... Rfe8 {[%clk 0:01:26.8]} 20. Qb1 {[%clk 0:01:28.1]} 20... Qf4 {[%clk
0:01:17.4]} 21. Bf1 {[%clk 0:01:11.4]} 21... h5 {[%clk 0:00:58.2]} 22. Bb2
{[%clk 0:00:55.5]} 22... Qb4 {[%clk 0:00:54]} 23. Rd4 {[%clk 0:00:51.6]} 23...
Qd6 {[%clk 0:00:39.7]} 24. Qa1 {[%clk 0:00:46.8]} 24... Nc5 {[%clk 0:00:26.6]}
25. Qa2 {[%clk 0:00:38.2]} 25... Nfe4 {[%clk 0:00:22]} 26. Nxe4 {[%clk
0:00:35.3]} 26... Nxe4 {[%clk 0:00:22.2]} 27. Rxc8 {[%clk 0:00:30.4]} 27... Bxc8
{[%clk 0:00:22.8]} 28. Rd3 {[%clk 0:00:28.4]} 28... Qc5 {[%clk 0:00:16.3]} 29.
Bxg7 {[%clk 0:00:25.6]} 29... Kxg7 {[%clk 0:00:17.2]} 30. Qb2+ {[%clk
0:00:25.9]} 30... Kg8 {[%clk 0:00:16.1]} 31. Rd4 {[%clk 0:00:20.1]} 31... Nd6
{[%clk 0:00:12.8]} 32. Qd2 {[%clk 0:00:18.2]} 32... b5 {[%clk 0:00:10.1]} 33.
axb5 {[%clk 0:00:15.3]} 33... axb5 {[%clk 0:00:11]} 34. Qf4 {[%clk 0:00:10.6]}
34... Nf5 {[%clk 0:00:09.4]} 35. Rd3 {[%clk 0:00:10.1]} 35... b4 {[%clk
0:00:08.3]} 36. d6 {[%clk 0:00:09.7]} 36... Bd7 {[%clk 0:00:07.9]} 37. Ne5
{[%clk 0:00:09]} 37... Qxe5 {[%clk 0:00:07.9]} 38. Qxb4 {[%clk 0:00:08.3]} 38...
Re6 {[%clk 0:00:04.6]} 39. Qb7 {[%clk 0:00:07.6]} 39... Rxd6 {[%clk 0:00:04.7]}
40. Ra3 {[%clk 0:00:04.2]} 40... Kg7 {[%clk 0:00:03.8]} 41. Qa7 {[%clk
0:00:03.7]} 41... Rd1 {[%clk 0:00:03.7]} 42. Rd3 {[%clk 0:00:02.3]} 42... Rxd3
{[%clk 0:00:03.5]} 43. Bxd3 {[%clk 0:00:02.7]} 43... Qe1+ {[%clk 0:00:04.2]} 44.
Kh2 {[%clk 0:00:02.4]} 44... Qe5+ {[%clk 0:00:04.8]} 45. Kg1 {[%clk 0:00:02.5]}
45... Be6 {[%clk 0:00:05.2]} 46. Qa2 {[%clk 0:00:02.2]} 46... Bxa2 {[%clk
0:00:04.9]} 0-1

[Event "Early-Titled-Tuesday-Blitz-March-12-2024"]
[Site "Chess.com"]
[Date "2024.03.12"]
[Round "4"]
[White "AccioChess"]
[Black "NMJeevanK"]
[Result "0-1"]
[WhiteElo "2420"]
[BlackElo "2591"]
[TimeControl "180+1"]
[EndTime "8:40:05 PDT"]
[Termination "NMJeevanK won by resignation"]

1. Nf3 {[%clk 0:03:00.9]} 1... d6 {[%clk 0:02:59]} 2. g3 {[%clk 0:03:01.8]} 2...
g6 {[%clk 0:02:58.7]} 3. Bg2 {[%clk 0:03:02]} 3... Bg7 {[%clk 0:02:59.6]} 4. O-O
{[%clk 0:03:02.3]} 4... Nf6 {[%clk 0:03:00.2]} 5. d4 {[%clk 0:03:02.8]} 5... O-O
{[%clk 0:03:00.9]} 6. b3 {[%clk 0:03:03.3]} 6... Nbd7 {[%clk 0:02:56.1]} 7. Bb2
{[%clk 0:03:03.4]} 7... c5 {[%clk 0:02:56.8]} 8. d5 {[%clk 0:03:02.3]} 8... b5
{[%clk 0:02:52.3]} 9. a4 {[%clk 0:02:58.9]} 9... Bb7 {[%clk 0:02:47.5]} 10. axb5
{[%clk 0:02:58.4]} 10... Bxd5 {[%clk 0:02:45.6]} 11. c4 {[%clk 0:02:58.3]} 11...
Bb7 {[%clk 0:02:44.2]} 12. Nc3 {[%clk 0:02:58.1]} 12... Ne4 {[%clk 0:02:38.9]}
13. Qc2 {[%clk 0:02:57]} 13... Ndf6 {[%clk 0:02:36.2]} 14. Ne1 {[%clk
0:02:39.1]} 14... d5 {[%clk 0:02:29.1]} 15. cxd5 {[%clk 0:02:30.3]} 15... Nxc3
{[%clk 0:02:26.1]} 16. Bxc3 {[%clk 0:02:30]} 16... Qb6 {[%clk 0:02:07.6]} 17. e4
{[%clk 0:02:26.1]} 17... Qxb5 {[%clk 0:02:07.2]} 18. Nd3 {[%clk 0:02:20.1]}
18... Rfc8 {[%clk 0:01:52.1]} 19. Nb2 {[%clk 0:02:19.2]} 19... Qd7 {[%clk
0:01:44.4]} 20. Nc4 {[%clk 0:02:17.9]} 20... h5 {[%clk 0:01:39]} 21. Rfd1 {[%clk
0:02:12.3]} 21... h4 {[%clk 0:01:38.2]} 22. Ne3 {[%clk 0:02:02.6]} 22... h3
{[%clk 0:01:34.6]} 23. Bh1 {[%clk 0:02:02]} 23... e6 {[%clk 0:01:22.9]} 24. dxe6
{[%clk 0:01:38.3]} 24... Qxe6 {[%clk 0:01:23.8]} 25. Nd5 {[%clk 0:01:38.2]}
25... Bxd5 {[%clk 0:01:16.6]} 26. exd5 {[%clk 0:01:39.1]} 26... Qd6 {[%clk
0:01:14.2]} 27. Qd3 {[%clk 0:01:24.8]} 27... Rab8 {[%clk 0:01:00.3]} 28. Bd2
{[%clk 0:01:04.5]} 28... Ng4 {[%clk 0:00:49.4]} 29. Bf4 {[%clk 0:01:03.3]} 29...
Qb6 {[%clk 0:00:26.9]} 30. Bxb8 {[%clk 0:00:58.7]} 30... Bxa1 {[%clk 0:00:25]}
31. Rxa1 {[%clk 0:00:56]} 31... Rxb8 {[%clk 0:00:24.4]} 32. Qe2 {[%clk
0:00:40.9]} 32... Nf6 {[%clk 0:00:20.3]} 33. Qe7 {[%clk 0:00:34.4]} 33... Qxb3
{[%clk 0:00:17.3]} 34. Rf1 {[%clk 0:00:18.1]} 34... Nxd5 {[%clk 0:00:17.2]} 35.
Qxa7 {[%clk 0:00:16.6]} 35... Nc3 {[%clk 0:00:17.1]} 36. Bf3 {[%clk 0:00:14.5]}
36... Rc8 {[%clk 0:00:13.8]} 37. Qd7 {[%clk 0:00:13.6]} 37... Rb8 {[%clk
0:00:12.3]} 38. Qxh3 {[%clk 0:00:13]} 38... Nb5 {[%clk 0:00:11.9]} 39. Qg2
{[%clk 0:00:11.8]} 39... Nd4 {[%clk 0:00:12.1]} 40. Bd5 {[%clk 0:00:11.8]} 40...
Qd3 {[%clk 0:00:12.1]} 41. h4 {[%clk 0:00:10.6]} 41... Rd8 {[%clk 0:00:12.1]}
42. Be4 {[%clk 0:00:09.5]} 42... Qd2 {[%clk 0:00:10.9]} 43. Kh2 {[%clk
0:00:09.2]} 43... c4 {[%clk 0:00:11.1]} 44. f4 {[%clk 0:00:08]} 44... Qe3 {[%clk
0:00:09.8]} 45. Rf2 {[%clk 0:00:07.3]} 45... c3 {[%clk 0:00:09.9]} 46. Bc2
{[%clk 0:00:07.2]} 46... Nxc2 {[%clk 0:00:09.3]} 47. Rxc2 {[%clk 0:00:06.9]}
47... Rd2 {[%clk 0:00:10]} 48. Rxd2 {[%clk 0:00:06.4]} 48... cxd2 {[%clk
0:00:10.5]} 49. Qa8+ {[%clk 0:00:06]} 49... Kh7 {[%clk 0:00:10.9]} 50. Kh3
{[%clk 0:00:05.1]} 50... d1=Q {[%clk 0:00:10.9]} 0-1

[Event "Early-Titled-Tuesday-Blitz-March-12-2024"]
[Site "Chess.com"]
[Date "2024.03.12"]
[Round "4"]
[White "AlexandraSamaganova"]
[Black "Baronessa08"]
[Result "0-1"]
[WhiteElo "2380"]
[BlackElo "2553"]
[TimeControl "180+1"]
[EndTime "8:40:05 PDT"]
[Termination "Baronessa08 won on time"]

1. c4 {[%clk 0:03:00.9]} 1... e6 {[%clk 0:02:58.7]} 2. Nc3 {[%clk 0:03:00.2]}
2... d5 {[%clk 0:02:57.4]} 3. e3 {[%clk 0:02:56]} 3... Nf6 {[%clk 0:02:56.1]} 4.
Nf3 {[%clk 0:02:53.2]} 4... b6 {[%clk 0:02:52.9]} 5. d4 {[%clk 0:02:52.7]} 5...
Bb7 {[%clk 0:02:49.7]} 6. cxd5 {[%clk 0:02:51.6]} 6... exd5 {[%clk 0:02:49.6]}
7. Bd3 {[%clk 0:02:51.5]} 7... Bd6 {[%clk 0:02:48.9]} 8. Qc2 {[%clk 0:02:51.4]}
8... a6 {[%clk 0:02:49]} 9. O-O {[%clk 0:02:50.4]} 9... Nbd7 {[%clk 0:02:49.4]}
10. Re1 {[%clk 0:02:49.5]} 10... O-O {[%clk 0:02:49.1]} 11. e4 {[%clk
0:02:49.6]} 11... dxe4 {[%clk 0:02:48.9]} 12. Nxe4 {[%clk 0:02:49.7]} 12... Nxe4
{[%clk 0:02:47.5]} 13. Bxe4 {[%clk 0:02:50.6]} 13... Bxe4 {[%clk 0:02:47.7]} 14.
Rxe4 {[%clk 0:02:49.8]} 14... Qf6 {[%clk 0:02:30.5]} 15. Bg5 {[%clk 0:02:45.7]}
15... Qg6 {[%clk 0:02:15.9]} 16. Rc1 {[%clk 0:02:41.3]} 16... Rae8 {[%clk
0:02:07.2]} 17. Rxe8 {[%clk 0:02:30.1]} 17... Rxe8 {[%clk 0:02:05.2]} 18. Qa4
{[%clk 0:02:18.6]} 18... b5 {[%clk 0:01:51.7]} 19. Qb3 {[%clk 0:02:11.3]} 19...
h6 {[%clk 0:01:48.6]} 20. Be3 {[%clk 0:02:10.2]} 20... Nb6 {[%clk 0:01:41]} 21.
Nd2 {[%clk 0:01:59]} 21... Qh5 {[%clk 0:01:19.3]} 22. h3 {[%clk 0:01:53.9]}
22... Qe2 {[%clk 0:01:13.3]} 23. d5 {[%clk 0:01:41.6]} 23... Na4 {[%clk
0:00:56.3]} 24. Qc2 {[%clk 0:01:21.9]} 24... Re5 {[%clk 0:00:20.4]} 25. b3
{[%clk 0:00:51]} 25... Nb6 {[%clk 0:00:20.3]} 26. Bxb6 {[%clk 0:00:47.8]} 26...
cxb6 {[%clk 0:00:21.2]} 27. Qc8+ {[%clk 0:00:34.2]} 27... Kh7 {[%clk 0:00:21]}
28. Nf3 {[%clk 0:00:34.5]} 28... Rxd5 {[%clk 0:00:20.7]} 29. Re1 {[%clk
0:00:25.7]} 29... Qxa2 {[%clk 0:00:10.6]} 30. Qc6 {[%clk 0:00:18]} 30... Qxb3
{[%clk 0:00:09.5]} 31. Qe8 {[%clk 0:00:10.2]} 31... Rd1 {[%clk 0:00:08.3]} 32.
Qe4+ {[%clk 0:00:09.4]} 32... g6 {[%clk 0:00:08.2]} 33. g3 {[%clk 0:00:07.9]}
33... Rxe1+ {[%clk 0:00:08.1]} 34. Nxe1 {[%clk 0:00:08.6]} 34... a5 {[%clk
0:00:07.3]} 35. h4 {[%clk 0:00:06.7]} 35... Qe6 {[%clk 0:00:07.4]} 36. Qb1
{[%clk 0:00:06]} 36... a4 {[%clk 0:00:06]} 37. h5 {[%clk 0:00:05.4]} 37... a3
{[%clk 0:00:06.3]} 38. hxg6+ {[%clk 0:00:05.4]} 38... Qxg6 {[%clk 0:00:06.7]}
39. Qa2 {[%clk 0:00:05.2]} 39... Qe6 {[%clk 0:00:06.9]} 40. Nf3 {[%clk
0:00:05.3]} 40... Qxa2 {[%clk 0:00:06.2]} 0-1

[Event "Early-Titled-Tuesday-Blitz-March-12-2024"]
[Site "Chess.com"]
[Date "2024.03.12"]
[Round "4"]
[White "masnyszachistaaa"]
[Black "kassablanca"]
[Result "0-1"]
[WhiteElo "2564"]
[BlackElo "2779"]
[TimeControl "180+1"]
[EndTime "8:40:06 PDT"]
[Termination "kassablanca won by resignation"]

1. Nf3 {[%clk 0:03:00.9]} 1... d5 {[%clk 0:02:59.6]} 2. d4 {[%clk 0:02:59.9]}
2... e6 {[%clk 0:02:58.8]} 3. c4 {[%clk 0:02:59.6]} 3... a6 {[%clk 0:02:58.9]}
4. c5 {[%clk 0:02:52]} 4... b6 {[%clk 0:02:52.5]} 5. cxb6 {[%clk 0:02:50.2]}
5... cxb6 {[%clk 0:02:52.8]} 6. Nc3 {[%clk 0:02:49.2]} 6... Nf6 {[%clk
0:02:53.1]} 7. Bf4 {[%clk 0:02:49.1]} 7... Be7 {[%clk 0:02:46.9]} 8. e3 {[%clk
0:02:48.7]} 8... O-O {[%clk 0:02:47]} 9. Bd3 {[%clk 0:02:47.7]} 9... Bb7 {[%clk
0:02:45.7]} 10. O-O {[%clk 0:02:47.2]} 10... Nbd7 {[%clk 0:02:45.8]} 11. Rc1
{[%clk 0:02:45.3]} 11... Nh5 {[%clk 0:02:06.4]} 12. Be5 {[%clk 0:02:09.1]} 12...
Nhf6 {[%clk 0:01:58.3]} 13. Qe2 {[%clk 0:01:45.2]} 13... Nxe5 {[%clk 0:01:55.9]}
14. Nxe5 {[%clk 0:01:43]} 14... Nd7 {[%clk 0:01:48.8]} 15. Nf3 {[%clk 0:01:25]}
15... Nf6 {[%clk 0:01:34.1]} 16. Na4 {[%clk 0:01:15.9]} 16... Qd6 {[%clk
0:01:17.8]} 17. Ne5 {[%clk 0:01:13.5]} 17... Rfc8 {[%clk 0:01:01.8]} 18. Rxc8+
{[%clk 0:01:12.9]} 18... Bxc8 {[%clk 0:01:02.3]} 19. Rc1 {[%clk 0:01:12.5]}
19... Bb7 {[%clk 0:00:56.1]} 20. h3 {[%clk 0:01:11.3]} 20... g6 {[%clk
0:00:54.4]} 21. b3 {[%clk 0:00:56.2]} 21... Bd8 {[%clk 0:00:52.4]} 22. Rc3
{[%clk 0:00:49.1]} 22... Nd7 {[%clk 0:00:49.4]} 23. Nxd7 {[%clk 0:00:44.3]}
23... Qxd7 {[%clk 0:00:49.9]} 24. Qc2 {[%clk 0:00:43]} 24... Rc8 {[%clk
0:00:49.4]} 25. Rxc8 {[%clk 0:00:41.8]} 25... Qxc8 {[%clk 0:00:50]} 26. Qxc8
{[%clk 0:00:40.9]} 26... Bxc8 {[%clk 0:00:50.9]} 27. Kf1 {[%clk 0:00:40.7]}
27... Kf8 {[%clk 0:00:50.6]} 28. Ke2 {[%clk 0:00:40.6]} 28... Ke7 {[%clk
0:00:50.4]} 29. Nc3 {[%clk 0:00:40.5]} 29... Kd6 {[%clk 0:00:48.1]} 30. Kd2
{[%clk 0:00:39.8]} 30... f6 {[%clk 0:00:40.3]} 31. Ne2 {[%clk 0:00:36]} 31... e5
{[%clk 0:00:39.3]} 32. f4 {[%clk 0:00:28]} 32... b5 {[%clk 0:00:32.4]} 33. fxe5+
{[%clk 0:00:24.1]} 33... fxe5 {[%clk 0:00:32.6]} 34. dxe5+ {[%clk 0:00:24.7]}
34... Kxe5 {[%clk 0:00:32.7]} 35. Nd4 {[%clk 0:00:25.3]} 35... Ba5+ {[%clk
0:00:30.7]} 36. Ke2 {[%clk 0:00:22.1]} 36... Bb6 {[%clk 0:00:30.3]} 37. Nf3+
{[%clk 0:00:20.5]} 37... Kf6 {[%clk 0:00:29.4]} 38. Nd4 {[%clk 0:00:19.9]} 38...
Bd7 {[%clk 0:00:28.9]} 39. Kf3 {[%clk 0:00:19.1]} 39... Ke5 {[%clk 0:00:28.5]}
40. Ne2 {[%clk 0:00:18]} 40... Bc5 {[%clk 0:00:27.8]} 41. Nf4 {[%clk 0:00:16.6]}
41... Bc6 {[%clk 0:00:25.3]} 42. Ke2 {[%clk 0:00:07.6]} 42... d4 {[%clk
0:00:21.7]} 43. exd4+ {[%clk 0:00:07.7]} 43... Bxd4 {[%clk 0:00:19.3]} 44. g3
{[%clk 0:00:08]} 44... Bc5 {[%clk 0:00:18.3]} 45. h4 {[%clk 0:00:08.2]} 45...
Be7 {[%clk 0:00:18.1]} 46. Nh3 {[%clk 0:00:08.4]} 46... Kd4 {[%clk 0:00:17]} 47.
Kd2 {[%clk 0:00:08.6]} 47... Bd6 {[%clk 0:00:16.1]} 48. g4 {[%clk 0:00:08.2]}
48... Bd7 {[%clk 0:00:16.5]} 49. Nf2 {[%clk 0:00:08.2]} 49... Bg3 {[%clk
0:00:15.8]} 50. Ne4 {[%clk 0:00:08.5]} 50... Bxh4 {[%clk 0:00:16.2]} 51. g5
{[%clk 0:00:08.8]} 51... Bf5 {[%clk 0:00:16.1]} 52. Nf6 {[%clk 0:00:04.7]} 52...
Bxg5+ {[%clk 0:00:16.3]} 53. Kd1 {[%clk 0:00:03.8]} 53... Bxf6 {[%clk
0:00:17.2]} 0-1

[Event "Early-Titled-Tuesday-Blitz-March-12-2024"]
[Site "Chess.com"]
[Date "2024.03.12"]
[Round "4"]
[White "chito89"]
[Black "nekotyanof"]
[Result "1-0"]
[WhiteElo "2842"]
[BlackElo "2645"]
[TimeControl "180+1"]
[EndTime "8:40:08 PDT"]
[Termination "chito89 won by resignation"]

1. c4 {[%clk 0:03:00.9]} 1... Nf6 {[%clk 0:03:00.1]} 2. Nc3 {[%clk 0:02:40.3]}
2... c5 {[%clk 0:02:58.3]} 3. Nf3 {[%clk 0:02:40.2]} 3... Nc6 {[%clk 0:02:58]}
4. e3 {[%clk 0:02:39.5]} 4... g6 {[%clk 0:02:56.6]} 5. d4 {[%clk 0:02:39.1]}
5... cxd4 {[%clk 0:02:57.5]} 6. exd4 {[%clk 0:02:40]} 6... d5 {[%clk 0:02:58]}
7. cxd5 {[%clk 0:02:40.8]} 7... Nxd5 {[%clk 0:02:58.9]} 8. Qb3 {[%clk
0:02:41.1]} 8... Nxc3 {[%clk 0:02:57.2]} 9. Bc4 {[%clk 0:02:41.5]} 9... e6
{[%clk 0:02:51.7]} 10. bxc3 {[%clk 0:02:41.4]} 10... Na5 {[%clk 0:02:44.8]} 11.
Bb5+ {[%clk 0:02:41.2]} 11... Bd7 {[%clk 0:02:45.3]} 12. Qa4 {[%clk 0:02:41.7]}
12... Nc6 {[%clk 0:02:40.5]} 13. d5 {[%clk 0:02:40.1]} 13... exd5 {[%clk
0:02:36.9]} 14. O-O {[%clk 0:02:40.7]} 14... Be7 {[%clk 0:02:29.1]} 15. Bh6
{[%clk 0:02:37.1]} 15... f6 {[%clk 0:02:13.6]} 16. Rfe1 {[%clk 0:02:18.5]} 16...
Kf7 {[%clk 0:02:10.8]} 17. Qf4 {[%clk 0:02:13.3]} 17... Re8 {[%clk 0:01:49.3]}
18. Rad1 {[%clk 0:02:01.1]} 18... a6 {[%clk 0:01:48.1]} 19. Bc4 {[%clk
0:01:44.8]} 19... Kg8 {[%clk 0:00:55.9]} 20. Bxd5+ {[%clk 0:01:33.7]} 20... Kh8
{[%clk 0:00:53.2]} 21. Bxc6 {[%clk 0:01:16.9]} 21... bxc6 {[%clk 0:00:49.5]} 22.
Ne5 {[%clk 0:01:11.2]} 22... fxe5 {[%clk 0:00:45.5]} 23. Qf7 {[%clk 0:01:07.7]}
23... Rg8 {[%clk 0:00:39.9]} 24. Rxe5 {[%clk 0:01:04.5]} 24... Be6 {[%clk
0:00:10.7]} 25. Bg7+ {[%clk 0:00:39.2]} 25... Rxg7 {[%clk 0:00:10.8]} 26. Rxd8+
{[%clk 0:00:39.6]} 26... Rxd8 {[%clk 0:00:08.3]} 27. Qxe6 {[%clk 0:00:39.8]}
27... Bf6 {[%clk 0:00:04.5]} 28. Re2 {[%clk 0:00:22.3]} 28... Bxc3 {[%clk
0:00:05]} 29. g3 {[%clk 0:00:22.5]} 29... c5 {[%clk 0:00:05.2]} 30. Qxa6 {[%clk
0:00:17.2]} 30... Bd4 {[%clk 0:00:05.7]} 31. Qb5 {[%clk 0:00:16]} 31... Rf7
{[%clk 0:00:03.4]} 32. Kg2 {[%clk 0:00:15.7]} 32... Kg7 {[%clk 0:00:02.4]} 33.
a4 {[%clk 0:00:14.9]} 33... Ra8 {[%clk 0:00:03]} 34. a5 {[%clk 0:00:09.9]} 34...
Raa7 {[%clk 0:00:02]} 35. a6 {[%clk 0:00:07.4]} 35... Rfc7 {[%clk 0:00:02.6]}
36. f4 {[%clk 0:00:06.1]} 36... Rf7 {[%clk 0:00:03.5]} 37. Qc4 {[%clk
0:00:04.4]} 37... Rfc7 {[%clk 0:00:04]} 38. Re8 {[%clk 0:00:04.8]} 38... Rf7
{[%clk 0:00:03.4]} 39. h4 {[%clk 0:00:05.2]} 39... Bf6 {[%clk 0:00:03.3]} 40.
Re6 {[%clk 0:00:02.9]} 40... Bd4 {[%clk 0:00:03.7]} 41. Kh3 {[%clk 0:00:03]}
41... Rf6 {[%clk 0:00:04.2]} 42. Rxf6 {[%clk 0:00:02.5]} 42... Kxf6 {[%clk
0:00:04.6]} 43. Qb5 {[%clk 0:00:03.4]} 43... Be3 {[%clk 0:00:02]} 44. Qb6+
{[%clk 0:00:03.3]} 44... Kf5 {[%clk 0:00:02.6]} 45. Qxa7 {[%clk 0:00:03.5]}
45... Ke4 {[%clk 0:00:03.5]} 1-0

[Event "Early-Titled-Tuesday-Blitz-March-12-2024"]
[Site "Chess.com"]
[Date "2024.03.12"]
[Round "4"]
[White "Boorchess"]
[Black "bobo_panda"]
[Result "1-0"]
[WhiteElo "2528"]
[BlackElo "2289"]
[TimeControl "180+1"]
[EndTime "8:40:08 PDT"]
[Termination "Boorchess won by checkmate"]

1. d4 {[%clk 0:02:58.2]} 1... Nf6 {[%clk 0:02:59.7]} 2. c4 {[%clk 0:02:57.7]}
2... e6 {[%clk 0:02:59.7]} 3. g3 {[%clk 0:02:57.2]} 3... Bb4+ {[%clk 0:02:58.1]}
4. Nd2 {[%clk 0:02:56.5]} 4... O-O {[%clk 0:02:55]} 5. Bg2 {[%clk 0:02:56.6]}
5... c5 {[%clk 0:02:54.1]} 6. dxc5 {[%clk 0:02:54.5]} 6... Bxc5 {[%clk
0:02:53.9]} 7. Ngf3 {[%clk 0:02:54.4]} 7... Nc6 {[%clk 0:02:52.8]} 8. O-O {[%clk
0:02:54.3]} 8... d5 {[%clk 0:02:52.8]} 9. a3 {[%clk 0:02:47.1]} 9... a6 {[%clk
0:02:40]} 10. b4 {[%clk 0:02:41.3]} 10... Ba7 {[%clk 0:02:39.7]} 11. Bb2 {[%clk
0:02:39.8]} 11... Qe7 {[%clk 0:02:30.9]} 12. e3 {[%clk 0:02:32.2]} 12... Rd8
{[%clk 0:02:07.5]} 13. Qb3 {[%clk 0:02:28.2]} 13... Bd7 {[%clk 0:01:53.8]} 14.
Rfd1 {[%clk 0:02:25.1]} 14... Be8 {[%clk 0:01:53.2]} 15. Rac1 {[%clk 0:02:12]}
15... Rac8 {[%clk 0:01:49.8]} 16. cxd5 {[%clk 0:02:07.1]} 16... Nxd5 {[%clk
0:01:44.6]} 17. Ne4 {[%clk 0:02:01.6]} 17... f6 {[%clk 0:01:29.2]} 18. Nc3
{[%clk 0:01:29.9]} 18... Nxc3 {[%clk 0:01:24.3]} 19. Bxc3 {[%clk 0:01:29.9]}
19... Bf7 {[%clk 0:01:23.5]} 20. Qb2 {[%clk 0:01:22.6]} 20... e5 {[%clk
0:01:23.3]} 21. Nd2 {[%clk 0:01:19.8]} 21... Bd5 {[%clk 0:01:11.5]} 22. Bxd5+
{[%clk 0:01:13.8]} 22... Rxd5 {[%clk 0:01:12.4]} 23. Qb3 {[%clk 0:01:08.2]}
23... Qf7 {[%clk 0:01:12.2]} 24. Ne4 {[%clk 0:00:57]} 24... Rcd8 {[%clk
0:01:00]} 25. Rxd5 {[%clk 0:00:54.2]} 25... Qxd5 {[%clk 0:00:59.4]} 26. Qc2
{[%clk 0:00:49.8]} 26... Qd3 {[%clk 0:00:50.8]} 27. Qxd3 {[%clk 0:00:45.3]}
27... Rxd3 {[%clk 0:00:50.1]} 28. Kf1 {[%clk 0:00:45.6]} 28... Kf7 {[%clk
0:00:47.9]} 29. Ke2 {[%clk 0:00:45.3]} 29... Rd7 {[%clk 0:00:46.9]} 30. g4
{[%clk 0:00:45.5]} 30... Ke6 {[%clk 0:00:46.2]} 31. h4 {[%clk 0:00:44.8]} 31...
Ne7 {[%clk 0:00:41.5]} 32. Bd2 {[%clk 0:00:42.8]} 32... Bb6 {[%clk 0:00:34.1]}
33. a4 {[%clk 0:00:39.1]} 33... Nd5 {[%clk 0:00:28.1]} 34. Rc8 {[%clk
0:00:36.9]} 34... Rd8 {[%clk 0:00:24.6]} 35. Rxd8 {[%clk 0:00:35.2]} 35... Bxd8
{[%clk 0:00:24.7]} 36. Nc5+ {[%clk 0:00:35.4]} 36... Kd6 {[%clk 0:00:24.9]} 37.
Nxb7+ {[%clk 0:00:35.1]} 37... Kd7 {[%clk 0:00:25.2]} 38. Nxd8 {[%clk
0:00:34.8]} 38... Kxd8 {[%clk 0:00:26.1]} 39. Kd3 {[%clk 0:00:34]} 39... Kd7
{[%clk 0:00:26.2]} 40. Kc4 {[%clk 0:00:33.3]} 40... Nb6+ {[%clk 0:00:23.5]} 41.
Kb3 {[%clk 0:00:33.3]} 41... Kc6 {[%clk 0:00:23.6]} 42. f3 {[%clk 0:00:31.6]}
42... Kd5 {[%clk 0:00:21.1]} 43. Bc3 {[%clk 0:00:31.5]} 43... Nc8 {[%clk
0:00:19.8]} 44. e4+ {[%clk 0:00:31.2]} 44... Kc6 {[%clk 0:00:19.6]} 45. Bd2
{[%clk 0:00:30.5]} 45... Nb6 {[%clk 0:00:19.4]} 46. Be3 {[%clk 0:00:30.6]} 46...
Nc8 {[%clk 0:00:19.2]} 47. Bc5 {[%clk 0:00:29.7]} 47... Kb7 {[%clk 0:00:18.1]}
48. Kc4 {[%clk 0:00:29.5]} 48... Kc6 {[%clk 0:00:16.7]} 49. b5+ {[%clk
0:00:29.8]} 49... axb5+ {[%clk 0:00:17.1]} 50. axb5+ {[%clk 0:00:30.2]} 50...
Kd7 {[%clk 0:00:17.6]} 51. Kd5 {[%clk 0:00:30.5]} 51... g6 {[%clk 0:00:16.3]}
52. h5 {[%clk 0:00:29.5]} 52... f5 {[%clk 0:00:15.5]} 53. hxg6 {[%clk
0:00:29.2]} 53... hxg6 {[%clk 0:00:14.9]} 54. gxf5 {[%clk 0:00:29.4]} 54... gxf5
{[%clk 0:00:15.8]} 55. exf5 {[%clk 0:00:29.8]} 55... Kc7 {[%clk 0:00:12.2]} 56.
Kxe5 {[%clk 0:00:29.7]} 56... Kb7 {[%clk 0:00:12.2]} 57. f6 {[%clk 0:00:29.8]}
57... Kc7 {[%clk 0:00:12.5]} 58. f7 {[%clk 0:00:29.9]} 58... Nb6 {[%clk
0:00:12.6]} 59. Bxb6+ {[%clk 0:00:29.7]} 59... Kxb6 {[%clk 0:00:12.7]} 60. f8=Q
{[%clk 0:00:30]} 60... Kxb5 {[%clk 0:00:13.3]} 61. Qc8 {[%clk 0:00:30.1]} 61...
Kb4 {[%clk 0:00:13.2]} 62. Kd4 {[%clk 0:00:30.1]} 62... Kb3 {[%clk 0:00:13.8]}
63. Qc3+ {[%clk 0:00:30.1]} 63... Ka4 {[%clk 0:00:14.5]} 64. Qb2 {[%clk
0:00:30.2]} 64... Ka5 {[%clk 0:00:14.6]} 65. Kc5 {[%clk 0:00:30.5]} 65... Ka4
{[%clk 0:00:15.5]} 66. Qb4# {[%clk 0:00:30.7]} 1-0